bitfinex/quotes_ETHUSD_20220213
["timestamp","ask_amount","ask_price","bid_price","bid_amount"]
[1644770963701,0.86576,2889.0,2888.9,0.01144527]
[1644770964001,0.86576,2889.0,2888.3,0.17209129]
[1644770964202,1.73153,2889.0,2888.9,0.01144534]
[1644770964602,2.6607872,2889.0,2888.9,0.01144534]
[1644770964801,4.3925172,2889.0,2888.9,0.01144534]
[1644770965202,4.3925172,2889.0,2888.1,0.25]
[1644770965440,4.3925172,2889.0,2888.2,1.47341312]
[1644770965441,0.86585,2888.8,2888.2,1.47341312]
[1644770965639,0.1729,2888.9,2888.3,1.47341312]
[1644770965840,1.0387,2888.9,2888.4,1.47341312]
[1644770966036,1.0387,2888.9,2888.1,0.1731]
[1644770966238,1.0387,2888.9,2888.2,1.47330645]
[1644770967243,0.86585,2888.8,2888.2,1.47330645]
[1644770967640,0.1729,2888.9,2888.2,1.47330645]
[1644770968142,1.03868,2888.9,2888.2,1.47330645]
[1644770968443,0.86579,2888.8,2888.2,1.47330645]
[1644770968642,1.03868,2888.9,2888.3,0.1729]
[1644770968643,2.72938361,2888.5,2888.3,0.1729]
[1644770968843,2.72938361,2888.5,2888.0,0.00115228]
[1644770969101,2.72938361,2888.5,2888.4,0.01144165]
[1644770969290,2.90248361,2888.5,2888.4,0.01144165]
[1644770969891,1.90499,2888.5,2887.8,0.00115228]
[1644770970091,1.73176,2888.8,2887.8,1.47463687]
[1644770970290,0.86587,2888.6,2888.3,0.01144171]
[1644770971196,0.86588,2888.5,2887.8,1.47463687]
[1644770971393,0.86588,2888.5,2888.3,0.01144171]
[1644770972193,0.86588,2888.5,2888.3,0.01019407]
[1644770972392,0.86588,2888.5,2888.0,0.00115228]
[1644770972593,0.86588,2888.5,2888.3,0.01144178]
[1644770973540,0.86588,2888.5,2888.0,0.00115228]
[1644770973746,1.73179,2888.5,2888.3,0.00381966]
[1644770973940,2.5977,2888.5,2888.3,0.00381966]
[1644770974843,2.5977,2888.5,2888.1,1.47345298]
[1644770974844,0.86588,2888.5,2888.1,1.47345298]
[1644770975043,0.86581,2888.7,2888.3,0.01144178]
[1644770975343,1.62583903,2889.3,2888.3,0.01144178]
[1644770975344,0.1731,2889.2,2888.4,1.64655298]
[1644770975544,0.1731,2889.2,2888.5,1.47345298]
[1644770976246,0.1731,2889.2,2888.7,0.01144138]
[1644770976443,0.8657,2889.1,2888.8,1.47345298]
[1644770977491,0.8657,2889.1,2888.7,0.01144165]
[1644770978291,0.8657,2889.1,2888.4,0.1731]
[1644770978493,0.8657,2889.1,2888.5,1.47319782]
[1644770978690,0.8657,2889.1,2888.7,0.01144152]
[1644770978893,0.8657,2889.1,2888.8,1.47321354]
[1644770979091,0.8657,2889.1,2888.7,0.01144152]
[1644770979691,0.8657,2889.1,2888.4,0.86569]
[1644770979891,0.8657,2889.1,2888.7,0.01144152]
[1644770980094,0.8657,2889.1,2888.8,1.47320732]
[1644770980942,0.8657,2889.1,2888.5,1.47320732]
[1644770981144,0.8657,2889.1,2888.7,0.01144165]
[1644770981343,0.8657,2889.1,2888.8,1.47320732]
[1644770982143,0.8657,2889.1,2888.7,0.01144165]
[1644770982344,0.8657,2889.1,2888.8,1.47318512]
[1644770983445,0.8657,2889.1,2888.7,0.01144165]
[1644770983645,0.8657,2889.1,2888.8,1.47319633]
[1644770984590,0.8657,2889.1,2888.7,0.01144165]
[1644770984790,0.8657,2889.1,2888.8,1.47319086]
[1644770985791,0.8657,2889.1,2888.7,0.01144165]
[1644770985991,0.8657,2889.1,2888.8,1.47318066]
[1644770986994,0.8657,2889.1,2888.7,0.01144165]
[1644770987193,0.8657,2889.1,2888.8,1.47315294]
[1644770988240,0.8657,2889.1,2888.9,1.47315294]
[1644770988441,0.8657,2889.1,2888.7,0.01144165]
[1644770988641,0.8657,2889.1,2888.8,1.47315213]
[1644770989446,0.8657,2889.1,2888.9,1.47315213]
[1644770989741,0.8657,2889.1,2888.7,0.01144165]
[1644770989943,0.8657,2889.1,2888.8,1.47315489]
[1644770990541,0.8657,2889.1,2888.9,1.47315489]
[1644770990742,0.8657,2889.1,2888.8,1.47315489]
[1644770990946,0.8657,2889.1,2888.9,1.47315489]
[1644770991144,0.86100803,2889.0,2888.7,0.01144165]
[1644770991342,0.86573,2888.9,2888.8,1.47316479]
[1644770992693,4.9,2888.8,2888.7,0.01144138]
[1644770992995,4.9,2888.8,2888.3,0.04577161]
[1644770992996,4.9,2888.7,2888.3,0.04577161]
[1644770993193,4.9,2888.7,2887.8,0.00115228]
[1644770993194,4.9,2888.3,2887.8,0.00115228]
[1644770993395,4.9,2888.3,2887.6,0.00115228]
[1644770993396,9.32641513,2888.2,2887.6,0.00115228]
[1644770993591,9.32641513,2888.2,2887.3,0.00115228]
[1644770993592,5.0,2888.0,2887.3,0.00115228]
[1644770993793,5.0,2888.0,2886.9,0.00115228]
[1644770993794,1.88321893,2887.2,2886.9,0.00115228]
[1644770993993,0.86635,2887.2,2886.6,0.66094009]
[1644770994196,1.7327,2887.2,2886.6,0.00115228]
[1644770994595,0.86635,2887.2,2886.6,0.00115228]
[1644770994793,0.86633,2887.1,2886.6,0.00115228]
[1644770994994,1.73248,2887.6,2886.6,0.66094009]
[1644770995195,1.30682991,2887.7,2886.7,0.00115228]
[1644770995446,3.49447857,2887.6,2886.7,0.00488712]
[1644770995646,0.86621,2887.5,2886.7,0.00488712]
[1644770996248,0.86618,2887.4,2886.7,0.00488712]
[1644770996447,0.86618,2887.4,2886.7,0.00115228]
[1644770996651,0.86618,2887.4,2887.0,0.00348229]
[1644770996652,0.66618,2887.4,2887.0,0.00348229]
[1644770996849,0.83928,2887.4,2887.0,0.00348229]
[1644770997250,0.83775119,2887.4,2887.0,0.00348229]
[1644770997649,0.83775119,2887.4,2886.7,0.00115228]
[1644770997852,0.83775119,2887.4,2887.1,0.01118241]
[1644770998051,0.66465119,2887.4,2887.1,0.01118241]
[1644770998851,0.66465119,2887.4,2886.7,0.00115228]
[1644770999101,0.66465119,2887.4,2887.1,0.01118235]
[1644771000093,0.66465119,2887.4,2886.7,0.00115228]
[1644771000293,0.66465119,2887.4,2887.1,0.01118235]
[1644771001300,1.90548,2887.7,2886.8,0.1731]
[1644771001301,1.03919,2887.7,2886.8,0.1731]
[1644771001495,1.03919,2887.7,2887.1,0.01057368]
[1644771001695,0.86617,2887.6,2887.1,0.01057368]
[1644771002398,0.86617,2887.6,2887.0,0.17425228]
[1644771002595,0.86617,2887.6,2887.2,0.01057331]
[1644771003242,0.86622,2887.5,2887.2,0.01057331]
[1644771003541,0.86622,2887.5,2887.1,0.00115228]
[1644771003742,0.86622,2887.5,2887.2,0.01057331]
[1644771003942,1.73244,2887.5,2887.2,0.01057331]
[1644771004143,0.86622,2887.4,2887.2,0.01057331]
[1644771004742,0.86622,2887.4,2887.1,0.00115228]
[1644771004946,0.86622,2887.4,2887.0,0.1731]
[1644771004947,0.86622,2887.4,2887.2,0.01067683]
[1644771005943,0.86622,2887.4,2887.0,0.17425228]
[1644771006143,0.86622,2887.4,2886.8,0.17425228]
[1644771006344,0.86622,2887.4,2887.2,0.01067683]
[1644771006795,0.86617,2887.5,2887.2,0.01067683]
[1644771007193,0.86617,2887.5,2886.8,0.17425228]
[1644771007395,0.86617,2887.5,2887.2,0.01067664]
[1644771007995,0.1731,2887.8,2887.2,0.01067664]
[1644771008195,0.1731,2887.9,2887.2,0.01067664]
[1644771008396,0.1731,2887.9,2886.8,0.17425228]
[1644771008597,3.7756561,2887.9,2887.4,0.01066098]
[1644771008796,0.86611,2887.8,2887.4,0.01066098]
[1644771009296,0.86611,2887.7,2887.4,0.01066098]
[1644771009699,0.86611,2887.7,2886.8,0.17425228]
[1644771009899,1.73225,2887.7,2887.4,0.0106608]
[1644771010103,0.86614,2887.7,2887.4,0.0106608]
[1644771010344,0.8662,2887.6,2887.4,0.0106608]
[1644771010545,1.73237,2887.6,2887.4,0.0106608]
[1644771010746,0.86617,2887.6,2886.8,0.17425228]
[1644771010946,3.46475,2887.6,2886.8,0.17425228]
[1644771011147,3.46475,2887.6,2887.4,0.01066098]
[1644771011547,0.86618,2887.5,2887.4,0.01066098]
[1644771012047,0.86618,2887.5,2886.8,0.17425228]
[1644771012247,1.90548,2887.9,2887.3,0.01066337]
[1644771012248,0.1731,2887.9,2887.3,0.01066337]
[1644771012449,0.1731,2887.7,2887.3,0.01066337]
[1644771012651,1.00724793,2888.0,2887.3,0.01066337]
[1644771013249,0.86606,2887.9,2887.0,3.47442814]
[1644771013453,0.1731,2888.3,2887.5,0.01066263]
[1644771013650,0.01089555,2888.4,2887.6,1.47080461]
[1644771013854,0.01089555,2888.4,2887.7,0.00115228]
[1644771014292,1.14430008,2888.4,2887.7,0.00115228]
[1644771014492,1.13340453,2888.4,2887.7,0.00115228]
[1644771014692,1.14430114,2888.4,2887.9,0.01066116]
[1644771014892,2.01020114,2888.4,2887.9,0.01066116]
[1644771015495,0.86597,2888.3,2887.9,0.01066116]
[1644771015694,1.13340453,2888.4,2887.5,0.00115228]
[1644771015893,1.14430131,2888.4,2888.0,0.01066047]
[1644771016095,0.86592,2888.3,2888.0,0.01066047]
[1644771016695,0.86597,2888.2,2888.0,0.01066047]
[1644771016896,0.86592,2888.3,2887.6,0.00115228]
[1644771017098,0.86592,2888.3,2888.0,0.01066047]
[1644771017697,0.01089678,2888.4,2888.0,0.01066047]
[1644771017947,0.01089678,2888.4,2887.7,0.00115228]
[1644771017948,0.86589,2888.4,2887.7,0.00115228]
[1644771018145,0.1731,2888.6,2887.7,1.97460834]
[1644771018354,0.01089692,2888.4,2888.1,0.01066028]
[1644771019148,1.06935325,2888.6,2887.8,0.00115228]
[1644771019546,0.01089707,2888.4,2888.1,0.01066015]
[1644771019745,0.01089707,2888.4,2888.1,0.00922503]
[1644771020349,5.03577,2889.0,2887.8,0.00115228]
[1644771020350,3.3041,2889.0,2887.8,0.00115228]
[1644771020948,3.3041,2889.0,2887.6,1.47458785]
[1644771021147,1.90060604,2888.5,2887.7,0.00115228]
[1644771021348,0.86588,2888.4,2887.7,0.00115228]
[1644771021612,1.73181,2888.4,2887.7,0.00115228]
[1644771021804,0.86593,2888.4,2887.7,0.00115228]
[1644771022004,2.76659604,2888.5,2887.7,0.00115228]
[1644771022204,1.03467604,2888.5,2887.7,0.86704228]
[1644771022405,1.03467604,2888.5,2887.8,1.47458785]
[1644771023109,2.76643604,2888.5,2888.0,0.0037331]
[1644771023306,2.76648604,2888.5,2888.0,0.0037331]
[1644771023505,1.90059604,2888.5,2888.0,0.0037331]
[1644771024004,1.90059604,2888.5,2887.8,0.00115228]
[1644771024208,1.90059604,2888.5,2888.0,0.01143357]
[1644771024209,0.01143198,2888.4,2888.0,0.01143357]
[1644771024405,0.86591,2888.3,2888.0,0.01143357]
[1644771025206,0.86591,2888.3,2887.7,0.00115228]
[1644771025451,0.86591,2888.3,2888.0,0.0114334]
[1644771025753,0.866,2888.1,2888.0,0.0114334]
[1644771026349,0.866,2888.1,2887.7,0.00115228]
[1644771026548,1.73205,2888.1,2887.6,1.47471735]
[1644771026752,1.73205,2888.1,2887.9,0.01143353]
[1644771026753,2.64335725,2888.0,2887.9,0.01143353]
[1644771026949,2.81645725,2888.0,2887.9,0.01143353]
[1644771027348,1.90522,2888.0,2887.9,0.01143353]
[1644771027547,1.90522,2888.0,2887.1,0.00115228]
[1644771027749,1.90522,2888.0,2887.1,1.47486262]
[1644771027750,2.59836,2887.8,2887.1,1.47486262]
[1644771027949,1.73227,2887.9,2887.2,0.00115228]
[1644771028151,0.1731,2888.1,2887.2,0.00115228]
[1644771028354,0.93811563,2888.1,2887.2,0.00115228]
[1644771028750,0.86607,2887.8,2887.2,0.00115228]
[1644771030009,0.86608,2887.9,2887.2,0.00115228]
[1644771030010,0.86602,2887.9,2887.2,0.00115228]
[1644771030307,5.20589,2888.2,2887.2,1.47486262]
[1644771030509,3.4738,2888.2,2887.3,1.47486262]
[1644771030709,3.3007,2888.2,2887.4,1.47371034]
[1644771030911,0.1731,2888.1,2887.5,0.00115228]
[1644771031109,1.03909,2888.1,2887.5,0.00115228]
[1644771031410,0.86599,2888.0,2887.7,0.01142956]
[1644771032408,0.86599,2888.0,2887.3,0.00115228]
[1644771032610,0.86599,2888.0,2887.7,0.0114295]
[1644771033143,0.86599,2888.0,2887.8,1.47358143]
[1644771033340,1.73203,2888.0,2887.8,1.47358143]
[1644771033740,1.73203,2888.0,2887.3,0.00115228]
[1644771033943,0.86605,2887.8,2887.3,0.04687687]
[1644771034142,0.86605,2887.8,2887.4,1.47358074]
[1644771034946,2.66972388,2887.8,2887.4,1.47358074]
[1644771035147,2.66972388,2887.8,2887.5,0.01142982]
[1644771035148,0.86633,2887.7,2887.5,0.01142982]
[1644771035445,1.03943,2887.7,2887.5,0.01142982]
[1644771035845,1.90579,2887.7,2887.5,0.01142982]
[1644771036053,1.90579,2887.7,2887.1,0.00115228]
[1644771036245,0.86626,2887.5,2887.1,0.00115228]
[1644771036698,0.86626,2887.5,2887.1,1.47501451]
[1644771036894,1.73251,2887.5,2887.1,1.47501451]
[1644771037494,0.8663,2887.4,2887.2,1.48529244]
[1644771037795,0.8663,2887.4,2887.3,1.47386223]
[1644771038795,0.8663,2887.4,2887.2,0.01143014]
[1644771038994,0.8663,2887.4,2887.3,1.47386223]
[1644771039994,0.8663,2887.4,2887.2,0.01143014]
[1644771040444,0.8663,2887.4,2887.3,1.47389257]
[1644771040644,0.8663,2887.4,2887.2,0.01143014]
[1644771040843,0.85696094,2887.3,2886.7,0.00115228]
[1644771041044,0.8663,2887.2,2886.8,0.04572743]
[1644771041249,1.73263,2887.1,2886.9,1.47391608]
[1644771041843,1.73172703,2887.1,2886.9,1.47391608]
[1644771042046,0.86633,2887.0,2886.9,1.47391608]
[1644771042245,0.86633,2887.0,2886.5,0.00115228]
[1644771042246,2.7726,2887.0,2886.5,0.00115228]
[1644771042444,0.07371022,2886.9,2886.3,0.00115228]
[1644771042646,0.1731,2886.8,2886.0,0.00115228]
[1644771042845,0.86657,2887.0,2886.3,0.00115228]
[1644771042846,1.03967,2887.0,2886.3,0.00115228]
[1644771043044,0.93089008,2886.7,2886.0,0.00115228]
[1644771043345,0.86654,2886.5,2886.0,0.00115228]
[1644771043546,5.2331,2886.6,2886.5,0.61020221]
[1644771043749,2.30681691,2886.6,2886.5,0.61020221]
[1644771043946,2.30681691,2886.6,2886.1,0.04571386]
[1644771043947,1.80681691,2886.6,2886.1,0.04571386]
[1644771044196,0.54734349,2887.0,2886.1,0.04571386]
[1644771044197,2.60032,2886.9,2886.2,1.41437712]
[1644771044395,6.7923,2887.1,2886.3,0.00115228]
[1644771044396,0.8668,2886.5,2886.3,0.00115228]
[1644771044599,0.8668,2886.5,2885.9,1.4155294]
[1644771044600,2.59999,2886.5,2885.9,1.4155294]
[1644771044796,0.97782449,2886.5,2885.9,1.4155294]
[1644771046097,1.84433449,2886.5,2885.9,1.4155294]
[1644771046499,0.86651,2886.5,2885.9,1.4155294]
[1644771046699,0.1731,2887.0,2885.9,1.4155294]
[1644771046898,0.07370686,2886.9,2885.9,1.4155294]
[1644771047099,3.1192,2887.1,2885.9,1.4155294]
[1644771047301,0.07370583,2887.0,2885.9,1.4155294]
[1644771047502,0.86639,2886.9,2885.9,1.58762069]
[1644771047702,1.87117675,2886.8,2886.0,1.41437712]
[1644771047947,1.87117675,2886.8,2886.1,1.4155294]
[1644771048147,0.86648,2886.8,2886.2,1.41437712]
[1644771048348,0.86648,2886.8,2886.3,1.42578272]
[1644771048547,0.86648,2886.8,2886.4,1.41437712]
[1644771048746,0.86648,2886.8,2886.5,1.41437712]
[1644771049149,0.86648,2886.6,2886.3,0.0114056]
[1644771049348,0.86648,2886.6,2886.4,1.38562165]
[1644771049548,0.86639,2887.0,2886.5,1.38562165]
[1644771050551,0.88324737,2886.7,2886.5,1.38562165]
[1644771050750,0.88324737,2886.7,2886.6,1.38562165]
[1644771050948,0.88324737,2886.7,2886.4,0.01140614]
[1644771051149,1.2116,2887.2,2886.4,0.01140614]
[1644771051358,0.07745996,2887.1,2886.5,1.38498886]
[1644771051609,0.94386996,2887.1,2886.5,1.38498886]
[1644771051792,1.81023996,2887.0,2886.6,1.38498886]
[1644771051994,0.07745996,2886.9,2886.4,0.01140627]
[1644771052594,1.04318327,2887.0,2886.5,1.38475253]
[1644771052794,0.86646,2886.8,2886.5,1.38590481]
[1644771052993,0.86646,2886.8,2886.0,0.00115228]
[1644771053194,1.04318327,2887.0,2886.4,0.01140614]
[1644771053394,1.04318327,2887.0,2886.5,1.38443513]
[1644771053594,1.04318327,2887.0,2886.5,1.38558741]
[1644771053795,2.77595327,2887.0,2886.5,1.38558741]
[1644771053998,0.86636,2887.0,2886.5,1.38558741]
[1644771054200,0.86636,2887.0,2886.6,1.38443513]
[1644771054396,0.0114015,2887.5,2886.7,1.38443513]
[1644771054595,0.0114015,2887.5,2886.8,1.38443513]
[1644771054596,0.08836019,2887.4,2886.8,1.38443513]
[1644771054794,0.08836019,2887.4,2886.9,0.00115228]
[1644771054995,0.86629,2887.2,2886.9,0.00115228]
[1644771055196,2.84038275,2887.4,2886.8,1.38443513]
[1644771055197,1.82100019,2887.4,2886.8,1.38443513]
[1644771055454,1.90561,2887.8,2886.9,1.38443513]
[1644771055455,1.73251,2887.8,2886.9,1.38443513]
[1644771055652,0.0114023,2887.5,2887.0,0.00115228]
[1644771056253,1.1365965,2887.1,2886.5,2.24048078]
[1644771056453,1.7439023,2887.5,2886.6,1.37426078]
[1644771056454,1.7325,2887.5,2886.6,1.37426078]
[1644771056658,0.1731,2887.7,2886.7,0.00115228]
[1644771056659,0.08838528,2887.4,2886.7,0.00115228]
[1644771056858,0.08838528,2887.3,2886.7,1.54736078]
[1644771057055,0.01140284,2887.5,2886.4,0.18349877]
[1644771057056,0.01140284,2887.5,2886.5,1.54736078]
[1644771057255,0.01140284,2887.5,2886.8,1.3731085]
[1644771057457,1.07553224,2887.3,2886.9,1.37426078]
[1644771057657,1.07553224,2887.3,2886.6,0.17425228]
[1644771057858,1.07553224,2887.3,2886.7,1.38446764]
[1644771058057,1.94179224,2887.3,2886.8,0.1731]
[1644771058257,1.94179224,2887.3,2886.9,1.38331536]
[1644771058458,1.94179224,2887.3,2886.8,0.17425228]
[1644771058859,1.94179224,2887.3,2886.9,1.38346667]
[1644771059700,1.94179224,2887.3,2886.8,0.17425228]
[1644771059900,0.86626,2887.3,2886.8,0.17425228]
[1644771060302,3.46506,2887.5,2886.8,0.17425228]
[1644771060303,0.0114023,2887.5,2886.9,1.38337146]
[1644771061405,0.07369437,2887.4,2886.9,1.38337146]
[1644771061605,0.0114027,2887.5,2887.0,0.00115228]
[1644771061807,1.2678497,2887.4,2887.0,0.00115228]
[1644771062009,0.0736946,2887.3,2887.0,0.00115228]
[1644771062206,0.2467946,2887.3,2886.6,0.00115228]
[1644771062406,0.0736946,2887.3,2886.6,0.00115228]
[1644771062611,0.1731,2887.2,2886.6,0.17425228]
[1644771062849,0.1731,2887.2,2886.7,0.00115228]
[1644771063047,0.1731,2887.2,2886.7,1.38668836]
[1644771064251,0.1731,2887.2,2886.7,2.25284836]
[1644771064450,0.1731,2887.2,2886.8,1.38553608]
[1644771064654,0.1731,2887.2,2886.8,1.55863608]
[1644771064851,0.1731,2887.2,2886.9,1.38553608]
[1644771065252,0.01140645,2887.5,2887.2,0.15489605]
[1644771066053,0.91481866,2887.7,2887.2,0.15489605]
[1644771066252,0.07935252,2887.6,2887.2,0.15489605]
[1644771066453,0.01140739,2887.5,2887.2,0.15489605]
[1644771067007,0.87757739,2887.5,2887.2,0.15489605]
[1644771067206,0.01140739,2887.5,2887.2,0.15489605]
[1644771067404,1.78097866,2887.7,2887.2,0.15489605]
[1644771067405,0.91481866,2887.7,2887.2,0.15489605]
[1644771067605,0.01140739,2887.5,2887.2,0.15489605]
[1644771068004,0.01140739,2887.5,2887.3,1.38356305]
[1644771068604,3.2288,2888.1,2887.3,1.38356305]
[1644771069006,0.07575804,2888.0,2887.4,2.25366745]
[1644771069304,0.65359734,2888.5,2887.3,1.90406129]
[1644771069305,0.07575804,2887.9,2887.5,1.88769745]
[1644771069505,3.5,2888.5,2887.6,1.88769745]
[1644771069708,0.07368066,2888.4,2887.7,1.38769745]
[1644771069904,0.07368066,2888.5,2887.7,1.38769745]
[1644771070105,0.01139979,2887.8,2887.7,1.38769745]
[1644771070961,6.54690599,2888.7,2887.7,1.38769745]
[1644771071161,0.01139972,2887.9,2887.7,2.25358745]
[1644771071564,0.01139972,2887.9,2887.8,1.3903903]
[1644771072161,0.86592,2888.4,2887.7,1.3903903]
[1644771072364,0.0113996,2888.0,2887.7,1.3903903]
[1644771072863,0.0113996,2888.0,2887.7,3.2951803]
[1644771073062,0.0113996,2888.0,2887.8,1.3903903]
[1644771073364,3.66789734,2888.7,2887.8,1.3903903]
[1644771073562,0.01139953,2888.0,2887.8,1.3903903]
[1644771073961,0.01139953,2888.0,2887.8,3.9878303]
[1644771074208,0.01139953,2888.0,2887.8,2.59744]
[1644771074609,3.66789734,2888.7,2887.8,2.59744]
[1644771074909,3.66789734,2888.7,2887.9,1.41952543]
[1644771074910,0.01139953,2888.0,2887.9,1.41952543]
[1644771075108,0.01139953,2888.0,2887.7,0.1731]
[1644771075308,0.01139953,2888.0,2887.8,1.4195726]
[1644771075506,0.01139953,2888.0,2887.7,1.03897]
[1644771075706,0.07367926,2887.9,2887.7,1.03897]
[1644771075908,0.65359734,2888.6,2887.7,1.03897]
[1644771076108,0.01139953,2888.0,2887.8,1.41978471]
[1644771076508,0.01139953,2888.0,2887.9,0.1731]
[1644771076709,0.01139953,2888.0,2887.9,1.41978471]
[1644771076909,0.07367686,2888.0,2887.8,1.41978471]
[1644771077108,1.69253734,2888.7,2887.8,0.86583]
[1644771077310,0.01139947,2888.1,2887.8,0.86583]
[1644771077511,0.07367666,2888.0,2887.8,0.86583]
[1644771078147,0.07367666,2888.0,2887.7,1.73171]
[1644771078348,0.07367666,2888.6,2887.8,1.42646048]
[1644771078549,0.01139953,2888.0,2887.8,1.42646048]
[1644771078947,0.01139953,2888.0,2887.7,0.86587]
[1644771079149,0.01139953,2888.0,2887.8,1.42812429]
[1644771079349,1.03897,2888.7,2887.8,1.42812429]
[1644771079648,0.0113996,2888.0,2887.8,1.42812429]
[1644771080651,1.90485,2888.7,2887.8,1.42812429]
[1644771080850,0.01139953,2888.0,2887.8,1.42812429]
[1644771081252,0.01139953,2888.0,2887.8,5.94546878]
[1644771081452,0.01139953,2888.0,2887.9,5.7117784]
[1644771081706,3.80689734,2889.1,2887.9,5.7117784]
[1644771081904,0.07367019,2889.0,2888.0,1.42812429]
[1644771082102,0.93942019,2889.0,2888.1,4.56447889]
[1644771082302,0.07367019,2888.9,2888.2,1.42812429]
[1644771082503,0.07367019,2888.9,2888.3,0.1729]
[1644771082902,0.07367019,2888.9,2888.2,1.03863]
[1644771084404,0.07367019,2888.9,2888.2,1.21072129]
[1644771084605,0.07367019,2888.9,2888.2,2.07641129]
[1644771084805,0.07367019,2888.8,2888.2,2.07641129]
[1644771085004,0.86569,2889.1,2888.2,2.07641129]
[1644771085005,0.07367019,2888.7,2888.2,2.07641129]
[1644771085220,0.1765295,2889.3,2888.3,3.4367193]
[1644771085459,0.0036295,2889.3,2888.5,0.86551]
[1644771085657,4.62378887,2889.8,2888.6,2.53497]
[1644771085658,0.04917785,2889.7,2888.6,2.53497]
[1644771085857,0.04917785,2889.7,2888.7,1.0]
[1644771086057,0.04917785,2889.7,2888.8,0.5]
[1644771086257,0.04917785,2889.7,2888.8,1.6892]
[1644771086456,0.04917785,2889.7,2889.0,0.86534]
[1644771086662,0.0036295,2889.7,2889.0,1.36534]
[1644771086857,0.01139051,2889.4,2889.2,0.8654]
[1644771087557,0.01139051,2889.4,2889.0,1.7428]
[1644771087760,0.0036295,2889.8,2889.0,1.7428]
[1644771088057,0.01139045,2889.4,2889.2,1.73086]
[1644771088257,0.01139045,2889.4,2889.0,1.7428]
[1644771088957,0.86347539,2890.1,2889.0,1.2428]
[1644771089201,0.01139057,2889.3,2889.1,0.3]
[1644771089400,0.01139057,2889.3,2889.0,2.21489129]
[1644771089401,0.01139057,2889.3,2889.0,2.78036129]
[1644771089800,0.01139057,2889.3,2889.1,1.0]
[1644771090200,1.1138483,2889.9,2889.2,0.86547]
[1644771090402,0.01139057,2889.3,2889.2,0.86547]
[1644771090800,0.0036295,2889.9,2889.2,0.86547]
[1644771091000,0.8690895,2890.1,2889.2,0.86547]
[1644771091202,0.86547,2889.9,2889.2,0.86547]
[1644771091400,0.8690995,2889.9,2889.2,0.86547]
[1644771091802,0.8690995,2889.9,2889.0,2.6083]
[1644771092003,0.8690995,2889.9,2889.1,0.86548]
[1644771092004,2.60466415,2889.9,2889.1,0.86548]
[1644771092202,0.8655,2889.8,2889.0,2.6083]
[1644771092404,0.0036295,2889.7,2889.0,6.12311001]
[1644771092605,0.0036295,2889.7,2889.0,6.04925816]
[1644771092850,0.0036295,2889.8,2889.0,2.7812]
[1644771093052,0.0036295,2889.8,2889.1,0.86544]
[1644771093249,0.0036295,2889.8,2889.2,0.86543]
[1644771093450,0.0036295,2889.8,2889.2,1.73087]
[1644771094051,0.0036295,2889.8,2889.4,0.01139133]
[1644771094252,0.88146366,2889.9,2889.4,0.01139133]
[1644771094453,0.88509316,2889.9,2889.4,0.01139133]
[1644771095053,0.87370415,2889.9,2889.3,0.86543]
[1644771095352,0.87370415,2889.9,2889.2,0.86544]
[1644771095353,1.65055356,2889.9,2889.5,0.01139114]
[1644771095558,1.64692406,2889.9,2889.5,0.01139114]
[1644771095754,0.78146406,2889.9,2889.5,0.01139114]
[1644771096152,0.77007465,2889.9,2889.2,0.86544]
[1644771096354,0.01501904,2889.9,2889.6,0.01139107]
[1644771096627,0.01138954,2889.9,2889.6,0.01139107]
[1644771097423,1.73108,2890.1,2889.0,1.4157]
[1644771097625,0.01138535,2889.9,2889.6,0.01138668]
[1644771097823,0.97774395,2889.7,2889.6,0.01138668]
[1644771098232,4.47774395,2889.7,2889.6,0.01138668]
[1644771098426,1.15064395,2889.7,2889.6,0.01138668]
[1644771098625,1.15064395,2889.7,2888.3,0.4229]
[1644771098826,0.1765295,2889.6,2888.3,0.4229]
[1644771099025,0.1765295,2889.6,2889.5,0.01138681]
[1644771099225,1.03869,2889.6,2889.5,0.01138681]
[1644771099826,1.7315,2889.4,2888.3,0.4229]
[1644771100025,0.1729,2889.3,2888.3,0.1729]
[1644771100227,1.73152,2889.2,2888.3,0.1729]
[1644771100455,0.86576,2889.0,2888.3,0.1729]
[1644771100958,2.59724,2889.2,2888.3,0.1729]
[1644771100959,0.86572,2889.2,2888.3,0.1729]
[1644771101161,1.0422695,2889.3,2888.5,0.01139243]
[1644771101455,0.8693695,2889.3,2888.5,0.01139243]
[1644771101656,1.7350495,2889.3,2888.5,0.01139243]
[1644771102255,1.7350495,2889.3,2888.4,0.86571]
[1644771102256,0.86571,2889.1,2888.4,0.86571]
[1644771102457,0.86571,2889.1,2888.8,0.01139211]
[1644771103057,0.86575,2889.0,2888.8,0.01139211]
[1644771103257,4.24827503,2888.9,2888.8,0.01139211]
[1644771103461,4.24827503,2888.9,2887.8,3.5746]
[1644771103659,4.24827503,2888.9,2888.1,0.04557956]
[1644771103660,3.7859831,2888.8,2888.1,0.04557956]
[1644771104108,0.86595,2888.7,2888.1,0.04557956]
[1644771104301,0.86598,2888.6,2888.1,0.04557956]
[1644771104700,0.86598,2888.6,2887.8,3.5746]
[1644771104901,0.86598,2888.6,2888.2,0.01139282]
[1644771105801,0.86598,2888.6,2887.8,3.62017812]
[1644771105802,0.86598,2888.6,2887.8,3.5746]
[1644771106006,0.86598,2888.6,2888.3,0.01139276]
[1644771106503,2.59782,2888.6,2888.3,0.01139276]
[1644771106704,0.86606,2888.5,2888.3,0.01139276]
[1644771106909,3.6731,2888.4,2888.3,0.01139276]
[1644771107104,3.6731,2888.4,2887.6,0.25]
[1644771107303,0.1731,2888.4,2888.3,0.01139276]
[1644771107855,4.50442,2888.4,2888.3,0.01139276]
[1644771108257,4.50442,2888.4,2887.4,0.25]
[1644771108456,4.50442,2888.4,2888.2,0.01139282]
[1644771109056,5.24400764,2888.3,2888.2,0.01139282]
[1644771109256,5.2516058,2888.3,2888.2,0.01139282]
[1644771109457,5.2516058,2888.3,2887.4,0.25]
[1644771109656,0.86612,2888.1,2887.7,0.04557864]
[1644771110656,0.86612,2888.1,2887.2,1.54639605]
[1644771110856,0.86612,2887.9,2887.8,0.0113934]
[1644771111905,0.86612,2887.9,2887.2,1.54639605]
[1644771112102,0.86612,2887.9,2887.7,0.01139347]
[1644771112602,1.73225,2887.9,2887.7,0.01139347]
[1644771113002,1.73225,2887.9,2887.3,0.1731]
[1644771113203,1.73225,2887.9,2887.7,0.01139353]
[1644771113402,0.86612,2887.8,2887.7,0.01139353]
[1644771113603,0.86612,2887.8,2887.7,1.48504434]
[1644771114205,0.86612,2887.8,2887.7,1.47365081]
[1644771115006,0.86609,2888.0,2887.7,1.47365081]